[Event "DMP Ekstraliga 2020"]
[Site "Krakow"]
[Date "2020.08.29"]
[Round "4.15"]
[White "Nurkiewicz, Maciej"]
[Black "Hnydiuk, Aleksander"]
[Result "1/2-1/2"]
[ECO "D12"]
[WhiteElo "2326"]
[BlackElo "2411"]
[Annotator "ChessBase"]
[PlyCount "98"]
[EventDate "2020.08.26"]
[EventType "team-tourn"]
[EventCountry "POL"]
[SourceTitle "playchess.com"]
[Source "ChessBase"]
[SourceQuality "1"]
[WhiteTeam "Wrzos Miedzyborow"]
[BlackTeam "Wieza Pegow"]
[TimeControl "30/5400+30:1800+30"]

1. d4 {[%emt 0:00:00]} d5 {[%emt 0:04:14]} 2. c4 {[%emt 0:00:00]} c6 {[%emt 0:00:02]} 3. Nf3 {[%emt 0:00:01]} Nf6 {[%emt 0:00:04]} 4. e3 {[%emt 0:00:28]} Bf5 {[%emt 0:00:39]} 5. Nc3 {[%emt 0:02:29]} a6 {[%emt 0:00:20]} 6. Be2 {[%emt 0:07:59]} h6 {[%emt 0:00:52]} 7. O-O {[%emt 0:00:26]} e6 {[%emt 0:00:14]} 8. a3 {[%emt 0:23:59]} Nbd7 {[%emt 0:11:13]} 9. b4 {[%emt 0:00:32]} Bd6 {[%emt 0:11:50]} 10. Bb2 {[%emt 0:03:22]} O-O {[%emt 0:03:08]} 11. Bd3 {[%emt 0:08:08]} dxc4 {[%emt 0:35:44]} 12. Bxc4 {[%emt 0:01:38]} e5 {[%emt 0:00:07]} 13. Nh4 {[%emt 0:17:35]} Bh7 {[%emt 0:01:30]} 14. dxe5 {[%emt 0:09:24]} Nxe5 {[%emt 0:00:41]} 15. Be2 {[%emt 0:00:19]} Qe7 {[%emt 0:15:10]} 16. Nf3 {[%emt 0:07:47]} Rad8 {[%emt 0:00:42]} 17. Qb3 {[%emt 0:02:35]} Nfg4 {[%emt 0:06:25]} 18. g3 {[%emt 0:03:15]} Bd3 {[%emt 0:01:28]} 19. Nxe5 {[%emt 0:01:22]} Nxe5 {[%emt 0:00:36]} 20. Nd5 {[%emt 0:02:29]} cxd5 {[%emt 0:00:16]} 21. Bxd3 {[%emt 0:00:02]} d4 {[%emt 0:00:37]} 22. Be2 {[%emt 0:03:42]} d3 {[%emt 0:02:14]} 23. Bxd3 {[%emt 0:01:37]} Nxd3 {[%emt 0:00:04]} 24. Qxd3 {[%emt 0:00:14]} Bxb4 {[%emt 0:02:24]} 25. Qf5 {[%emt 0:01:30]} Bd6 {[%emt 0:00:21]} 26. Rfd1 {[%emt 0:00:57]} Rfe8 {[%emt 0:01:00]} 27. Rd5 {[%emt 0:00:22]} Qe6 {[%emt 0:00:38]} 28. Qd3 {[%emt 0:00:32]} Be7 {[%emt 0:00:18]} 29. e4 {[%emt 0:01:00]} Bf6 {[%emt 0:00:13]} 30. Bxf6 {[%emt 0:00:25]} Qxf6 {[%emt 0:00:14]} 31. Rd1 {[%emt 0:30:10]} Rxd5 {[%emt 0:30:17]} 32. exd5 {[%emt 0:00:13]} Qd6 {[%emt 0:00:48]} 33. Qb3 {[%emt 0:00:34]} b5 {[%emt 0:00:12]} 34. a4 {[%emt 0:00:41]} b4 {[%emt 0:01:50]} 35. a5 {[%emt 0:00:18]} Rb8 {[%emt 0:00:10]} 36. Rc1 {[%emt 0:00:38]} Rb5 {[%emt 0:00:47]} 37. Qd3 {[%emt 0:00:22]} Rb8 38. Rc6 {[%emt 0:00:19]} Qd8 {[%emt 0:00:39]} 39. Qxa6 {[%emt 0:01:33]} b3 {[%emt 0:00:19]} 40. Rd6 {[%emt 0:00:00]} Qe7 {[%emt 0:00:00]} 41. Rb6 {[%emt 0:00:00]} Qe1+ {[%emt 0:00:00]} 42. Kg2 {[%emt 0:00:00]} Qe4+ {[%emt 0:00:00]} 43. Kh3 {[%emt 0:00:00]} Qf5+ {[%emt 0:00:00]} 44. Kg2 {[%emt 0:00:00]} Qxd5+ {[%emt 0:00:00]} 45. Kh3 {[%emt 0:00:00]} Qf5+ {[%emt 0:00:00]} 46. Kg2 {[%emt 0:00:00]} Qe4+ {[%emt 0:00:00]} 47. Kh3 {[%emt 0:00:00]} Qf5+ {[%emt 0:03:10]} 48. Kg2 {[%emt 0:00:00]} Qd5+ {[%emt 0:00:09]} 49. Kh3 {[%emt 0:00:00]} Qf5+ {[%emt 0:01:38]} 1/2-1/2

[Event "DMP Ekstraliga 2020"]
[Site "Krakow"]
[Date "2020.08.29"]
[Round "4.16"]
[White "Zilka, Stepan"]
[Black "Bartel, Michal"]
[Result "1-0"]
[ECO "A67"]
[WhiteElo "2564"]
[BlackElo "2274"]
[Annotator "ChessBase"]
[PlyCount "103"]
[EventDate "2020.08.26"]
[EventType "team-tourn"]
[EventCountry "POL"]
[SourceTitle "playchess.com"]
[Source "ChessBase"]
[SourceQuality "1"]
[WhiteTeam "Wieza Pegow"]
[BlackTeam "Wrzos Miedzyborow"]
[TimeControl "30/5400+30:1800+30"]

1. d4 {[%emt 0:00:00]} Nf6 {[%emt 0:00:00]} 2. c4 {[%emt 0:00:00]} c5 {[%emt 0:00:00]} 3. d5 {[%emt 0:00:00]} e6 {[%emt 0:00:00]} 4. Nc3 {[%emt 0:00:00]} exd5 {[%emt 0:00:00]} 5. cxd5 {[%emt 0:00:02]} d6 {[%emt 0:00:00]} 6. e4 {[%emt 0:00:21]} g6 {[%emt 0:00:06]} 7. f4 {[%emt 0:00:18]} Bg7 {[%emt 0:00:12]} 8. Bb5+ {[%emt 0:00:06]} Nfd7 {[%emt 0:00:10]} 9. Bd3 {[%emt 0:00:28]} Qh4+ {[%emt 0:01:41]} 10. g3 {[%emt 0:00:25]} Qe7 {[%emt 0:00:03]} 11. Nf3 {[%emt 0:00:13]} O-O {[%emt 0:00:20]} 12. O-O {[%emt 0:00:15]} a6 {[%emt 0:00:51]} 13. a4 {[%emt 0:00:22]} Nf6 {[%emt 0:02:31]} 14. Kg2 {[%emt 0:07:51]} Bg4 {[%emt 0:01:21]} 15. h3 {[%emt 0:01:40]} Bxf3+ {[%emt 0:00:06]} 16. Qxf3 {[%emt 0:00:29]} Nbd7 {[%emt 0:00:11]} 17. Bd2 {[%emt 0:02:03]} Rfe8 {[%emt 0:03:28]} 18. Rae1 {[%emt 0:04:42]} Qd8 {[%emt 0:04:39]} 19. Re2 {[%emt 0:03:23]} Nb6 {[%emt 0:12:24]} 20. b3 {[%emt 0:06:47]} Nfd7 {[%emt 0:04:18]} 21. Bc2 {[%emt 0:17:10]} Rb8 {[%emt 0:11:27]} 22. h4 {[%emt 0:04:44]} Nc8 {[%emt 0:04:38]} 23. h5 {[%emt 0:01:00]} Qe7 {[%emt 0:02:11]} 24. Nd1 {[%emt 0:06:29]} b5 {[%emt 0:04:14]} 25. a5 {[%emt 0:00:10]} b4 {[%emt 0:01:22]} 26. Bd3 {[%emt 0:14:06]} Na7 {[%emt 0:03:35]} 27. hxg6 {[%emt 0:01:45]} hxg6 {[%emt 0:00:08]} 28. Bxa6 {[%emt 0:05:34]} Nb5 {[%emt 0:00:06]} 29. Qd3 {[%emt 0:00:13]} Nd4 {[%emt 0:00:21]} 30. Ree1 {[%emt 0:00:03]} Ra8 {[%emt 0:01:08]} 31. Nb2 {[%emt 0:33:42]} c4 {[%emt 0:33:06]} 32. Bxc4 {[%emt 0:00:07]} Nc5 {[%emt 0:00:30]} 33. Qb1 {[%emt 0:00:42]} Ndxb3 {[%emt 0:02:22]} 34. Bxb3 {[%emt 0:10:18]} Nxb3 {[%emt 0:00:51]} 35. Nc4 {[%emt 0:00:14]} Nxd2 {[%emt 0:00:38]} 36. Nxd2 {[%emt 0:00:01]} Bc3 {[%emt 0:02:09]} 37. Re2 {[%emt 0:00:01]} Rxa5 {[%emt 0:00:19]} 38. e5 {[%emt 0:02:12]} Qb7 {[%emt 0:08:42]} 39. Ne4 {[%emt 0:01:08]} Qxd5 {[%emt 0:00:28]} 40. Rd1 {[%emt 0:00:00]} Qa8 {[%emt 0:00:00]} 41. Rxd6 {[%emt 0:00:00]} Kg7 {[%emt 0:00:00]} 42. Rd7 {[%emt 0:00:00]} Ra3 {[%emt 0:00:00]} 43. Qd3 {[%emt 0:00:00]} Qc6 {[%emt 0:00:00]} 44. Qd6 {[%emt 0:00:00]} Ra6 {[%emt 0:00:00]} 45. Qxc6 {[%emt 0:00:00]} Rxc6 {[%emt 0:00:00]} 46. Nd6 {[%emt 0:00:00]} Rxd6 {[%emt 0:00:08]} 47. Rxd6 {[%emt 0:00:00]} b3 {[%emt 0:00:04]} 48. Rb6 {[%emt 0:00:00]} b2 {[%emt 0:00:29]} 49. Rb7 {[%emt 0:00:10]} Kg8 {[%emt 0:00:46]} 50. Rc2 {[%emt 0:00:50]} Bd4 {[%emt 0:00:04]} 51. Rc4 {[%emt 0:01:42]} Rd8 {[%emt 0:00:14]} 52. Kf3 {[%emt 0:01:06]} 1-0

[Event "DMP Ekstraliga 2020"]
[Site "Krakow"]
[Date "2020.08.29"]
[Round "4.17"]
[White "Sliwerski, Radoslaw"]
[Black "Plat, Vojtech"]
[Result "0-1"]
[ECO "E62"]
[WhiteElo "2042"]
[BlackElo "2566"]
[Annotator "ChessBase"]
[PlyCount "42"]
[EventDate "2020.08.26"]
[EventType "team-tourn"]
[EventCountry "POL"]
[SourceTitle "playchess.com"]
[Source "ChessBase"]
[SourceQuality "1"]
[WhiteTeam "Wrzos Miedzyborow"]
[BlackTeam "Wieza Pegow"]
[TimeControl "30/5400+30:1800+30"]

1. d4 {[%emt 0:00:00]} d6 {[%emt 0:00:00]} 2. Nf3 {[%emt 0:00:00]} g6 {[%emt 0:00:00]} 3. c4 {[%emt 0:01:24]} Bg7 {[%emt 0:00:01]} 4. g3 {[%emt 0:01:03]} Nf6 {[%emt 0:00:34]} 5. Bg2 {[%emt 0:00:03]} O-O {[%emt 0:00:13]} 6. O-O {[%emt 0:00:05]} Nc6 {[%emt 0:00:05]} 7. Nc3 {[%emt 0:00:07]} Bf5 {[%emt 0:00:43]} 8. Ne1 {[%emt 0:01:12]} Qd7 {[%emt 0:03:49]} 9. e4 {[%emt 0:03:30]} Bh3 {[%emt 0:00:08]} 10. d5 {[%emt 0:08:42]} Na5 {[%emt 0:03:12]} 11. b3 {[%emt 0:07:40]} a6 {[%emt 0:04:13]} 12. Nc2 {[%emt 0:17:48]} b5 {[%emt 0:03:08]} 13. cxb5 {[%emt 0:04:03]} axb5 {[%emt 0:00:11]} 14. Be3 {[%emt 0:00:59]} c5 {[%emt 0:03:02]} 15. e5 {[%emt 0:10:48]} Bxg2 {[%emt 0:03:06]} 16. Kxg2 {[%emt 0:00:08]} Ng4 {[%emt 0:00:31]} 17. f4 {[%emt 0:06:35]} dxe5 {[%emt 0:02:15]} 18. Bxc5 {[%emt 0:04:13]} Rfc8 {[%emt 0:00:50]} 19. b4 {[%emt 0:03:36]} exf4 {[%emt 0:04:31]} 20. Qf3 {[%emt 0:06:26]} Nb7 {[%emt 0:03:02]} 21. Ne4 {[%emt 0:12:42]} f5 {[%emt 0:00:21]} 0-1

[Event "DMP Ekstraliga 2020"]
[Site "Krakow"]
[Date "2020.08.29"]
[Round "4.18"]
[White "Majdan, Joanna"]
[Black "Kulon, Klaudia"]
[Result "1/2-1/2"]
[ECO "C68"]
[WhiteElo "2325"]
[BlackElo "2336"]
[Annotator "ChessBase"]
[PlyCount "37"]
[EventDate "2020.08.26"]
[EventType "team-tourn"]
[EventCountry "POL"]
[SourceTitle "playchess.com"]
[Source "ChessBase"]
[SourceQuality "1"]
[WhiteTeam "Wieza Pegow"]
[BlackTeam "Wrzos Miedzyborow"]
[TimeControl "30/5400+30:1800+30"]

1. e4 {[%emt 0:00:00]} e5 {[%emt 0:00:00]} 2. Nf3 {[%emt 0:00:16]} Nc6 {[%emt 0:00:00]} 3. Bb5 {[%emt 0:00:07]} a6 {[%emt 0:00:00]} 4. Bxc6 {[%emt 0:01:18]} dxc6 {[%emt 0:00:00]} 5. O-O {[%emt 0:00:57]} f6 {[%emt 0:00:00]} 6. d4 {[%emt 0:01:08]} exd4 {[%emt 0:01:09]} 7. Nxd4 {[%emt 0:00:06]} c5 {[%emt 0:00:07]} 8. Ne2 {[%emt 0:00:54]} Qxd1 {[%emt 0:00:08]} 9. Rxd1 {[%emt 0:00:04]} Bd7 {[%emt 0:00:04]} 10. Nbc3 {[%emt 0:01:24]} O-O-O {[%emt 0:00:09]} 11. Be3 {[%emt 0:04:56]} Re8 {[%emt 0:00:44]} 12. Rd2 {[%emt 0:04:23]} Bc6 {[%emt 0:00:32]} 13. Rad1 {[%emt 0:01:42]} b6 {[%emt 0:00:25]} 14. f3 {[%emt 0:01:31]} Ne7 {[%emt 0:02:20]} 15. Nf4 {[%emt 0:08:15]} Ng6 {[%emt 0:00:58]} 16. Ncd5 {[%emt 0:04:37]} Ne5 {[%emt 0:08:13]} 17. b3 {[%emt 0:00:52]} h5 {[%emt 0:09:30]} 18. h4 {[%emt 0:02:58]} Kb7 {[%emt 0:02:40]} 19. Ne2 {[%emt 0:04:34]} 1/2-1/2

[Event "DMP Ekstraliga 2020"]
[Site "Krakow"]
[Date "2020.08.29"]
[Round "4.20"]
[White "Heberla, Bartlomiej"]
[Black "Bartel, Mateusz"]
[Result "1/2-1/2"]
[ECO "A10"]
[WhiteElo "2566"]
[BlackElo "2643"]
[Annotator "ChessBase"]
[PlyCount "101"]
[EventDate "2020.08.26"]
[EventType "team-tourn"]
[EventCountry "POL"]
[SourceTitle "playchess.com"]
[Source "ChessBase"]
[SourceQuality "1"]
[WhiteTeam "Miedz Legnica"]
[BlackTeam "Polonia Wroclaw"]
[TimeControl "30/5400+30:1800+30"]

1. c4 {[%emt 0:00:00]} b6 {[%emt 0:00:12]} 2. Nc3 {[%emt 0:01:00]} Bb7 {[%emt 0:00:22]} 3. e4 {[%emt 0:10:29]} e5 {[%emt 0:00:30]} 4. d3 {[%emt 0:02:38]} Bc5 {[%emt 0:04:05]} 5. a3 {[%emt 0:14:17]} a5 {[%emt 0:14:28]} 6. Nf3 {[%emt 0:09:15]} Nc6 {[%emt 0:00:15]} 7. Nxe5 {[%emt 0:02:12]} Nxe5 {[%emt 0:00:09]} 8. d4 {[%emt 0:00:03]} Bd6 {[%emt 0:00:15]} 9. dxe5 {[%emt 0:00:05]} Bxe5 {[%emt 0:00:10]} 10. Qc2 {[%emt 0:00:13]} Nf6 {[%emt 0:13:23]} 11. f3 {[%emt 0:02:08]} O-O {[%emt 0:00:05]} 12. Be3 {[%emt 0:04:37]} c6 {[%emt 0:02:36]} 13. O-O-O {[%emt 0:17:32]} d5 {[%emt 0:02:20]} 14. c5 {[%emt 0:00:04]} d4 {[%emt 0:09:21]} 15. Bg5 {[%emt 0:06:15]} h6 {[%emt 0:15:36]} 16. Bh4 {[%emt 0:01:28]} Qc7 {[%emt 0:09:04]} 17. cxb6 {[%emt 0:02:18]} Qe7 {[%emt 0:00:49]} 18. Nb1 {[%emt 0:02:03]} c5 {[%emt 0:01:18]} 19. Nd2 {[%emt 0:00:07]} Qe6 {[%emt 0:01:01]} 20. Bxf6 {[%emt 0:02:38]} Qxf6 {[%emt 0:01:48]} 21. Nc4 {[%emt 0:00:05]} Bxh2 {[%emt 0:00:24]} 22. Kb1 {[%emt 0:01:13]} Bg3 {[%emt 0:07:41]} 23. Bd3 {[%emt 0:04:27]} Ba6 {[%emt 0:00:37]} 24. Rh3 {[%emt 0:01:15]} Bf4 {[%emt 0:00:42]} 25. g3 {[%emt 0:04:47]} Bxc4 {[%emt 0:00:02]} 26. Bxc4 {[%emt 0:00:13]} Be3 {[%emt 0:00:05]} 27. f4 {[%emt 0:00:21]} Qxb6 {[%emt 0:00:05]} 28. e5 {[%emt 0:00:09]} Rab8 {[%emt 0:02:36]} 29. Rh2 {[%emt 0:01:27]} Rb7 {[%emt 0:01:33]} 30. Qf5 {[%emt 0:04:48]} Re8 {[%emt 0:03:26]} 31. Re1 {[%emt 0:34:38]} Kf8 {[%emt 0:31:46]} 32. e6 {[%emt 0:02:17]} Rxe6 {[%emt 0:00:52]} 33. Bxe6 {[%emt 0:00:05]} Qxe6 {[%emt 0:00:05]} 34. Qxe6 {[%emt 0:00:51]} fxe6 {[%emt 0:00:02]} 35. Rc2 {[%emt 0:00:32]} d3 {[%emt 0:03:07]} 36. Rxe3 {[%emt 0:00:49]} dxc2+ {[%emt 0:00:05]} 37. Kxc2 {[%emt 0:00:02]} Kf7 {[%emt 0:03:41]} 38. Re5 {[%emt 0:00:39]} Rc7 {[%emt 0:00:02]} 39. Kb3 {[%emt 0:00:20]} Kf6 {[%emt 0:00:09]} 40. Ka4 {[%emt 0:00:00]} c4 {[%emt 0:00:00]} 41. Re3 {[%emt 0:00:00]} Rb7 {[%emt 0:00:00]} 42. Re2 {[%emt 0:00:00]} Rb3 {[%emt 0:00:00]} 43. Kxa5 {[%emt 0:00:00]} c3 {[%emt 0:00:00]} 44. bxc3 {[%emt 0:00:00]} Rxc3 {[%emt 0:00:00]} 45. a4 {[%emt 0:00:00]} Rxg3 {[%emt 0:00:00]} 46. Kb4 {[%emt 0:00:00]} Rg1 {[%emt 0:00:00]} 47. a5 {[%emt 0:00:00]} Rb1+ {[%emt 0:00:00]} 48. Kc5 {[%emt 0:00:00]} Ra1 {[%emt 0:00:00]} 49. Kb6 {[%emt 0:00:00]} g5 {[%emt 0:00:00]} 50. fxg5+ {[%emt 0:00:00]} hxg5 {[%emt 0:00:00]} 51. Rf2+ {[%emt 0:00:00]} 1/2-1/2

[Event "DMP Ekstraliga 2020"]
[Site "Krakow"]
[Date "2020.08.29"]
[Round "4.21"]
[White "Gumularz, Szymon"]
[Black "Olszewski, Michal"]
[Result "1-0"]
[ECO "C55"]
[WhiteElo "2506"]
[BlackElo "2547"]
[Annotator "ChessBase"]
[PlyCount "129"]
[EventDate "2020.08.26"]
[EventType "team-tourn"]
[EventCountry "POL"]
[SourceTitle "playchess.com"]
[Source "ChessBase"]
[SourceQuality "1"]
[WhiteTeam "Polonia Wroclaw"]
[BlackTeam "Miedz Legnica"]
[TimeControl "30/5400+30:1800+30"]

1. e4 {[%emt 0:00:00]} e5 {[%emt 0:00:00]} 2. Nf3 {[%emt 0:00:00]} Nc6 {[%emt 0:00:00]} 3. Bc4 {[%emt 0:00:00]} Nf6 {[%emt 0:00:00]} 4. d3 {[%emt 0:00:00]} Be7 {[%emt 0:00:00]} 5. O-O {[%emt 0:00:29]} O-O {[%emt 0:00:00]} 6. Re1 {[%emt 0:00:29]} d6 {[%emt 0:00:05]} 7. a4 {[%emt 0:00:05]} Na5 {[%emt 0:04:11]} 8. Ba2 {[%emt 0:00:09]} c5 {[%emt 0:00:06]} 9. Na3 {[%emt 0:00:37]} Nc6 {[%emt 0:03:11]} 10. c3 {[%emt 0:00:09]} h6 {[%emt 0:07:29]} 11. Bd2 {[%emt 0:03:03]} Re8 {[%emt 0:03:24]} 12. Nc2 {[%emt 0:14:36]} Bf8 {[%emt 0:00:51]} 13. b4 {[%emt 0:00:41]} cxb4 {[%emt 0:14:25]} 14. cxb4 {[%emt 0:00:06]} Be6 {[%emt 0:00:03]} 15. b5 {[%emt 0:06:08]} Bxa2 {[%emt 0:02:24]} 16. Rxa2 {[%emt 0:00:11]} Ne7 {[%emt 0:05:08]} 17. Ne3 {[%emt 0:02:13]} Ng6 {[%emt 0:04:38]} 18. Qb3 {[%emt 0:06:40]} d5 {[%emt 0:07:39]} 19. Nxd5 {[%emt 0:11:11]} Nxd5 {[%emt 0:03:06]} 20. exd5 {[%emt 0:00:05]} Qd7 {[%emt 0:00:11]} 21. h4 {[%emt 0:00:18]} Rad8 {[%emt 0:24:56]} 22. h5 {[%emt 0:06:37]} Nf4 {[%emt 0:05:28]} 23. Nxe5 {[%emt 0:25:24]} Qxd5 {[%emt 0:00:53]} 24. Qxd5 {[%emt 0:00:53]} Nxd5 {[%emt 0:00:06]} 25. Nf3 {[%emt 0:11:11]} Rxe1+ {[%emt 0:00:07]} 26. Nxe1 {[%emt 0:02:31]} Nf6 {[%emt 0:01:08]} 27. Rc2 {[%emt 0:00:33]} Bd6 {[%emt 0:00:36]} 28. Be3 {[%emt 0:00:34]} Bb8 {[%emt 0:01:53]} 29. Rc5 {[%emt 0:01:50]} Kf8 {[%emt 0:05:54]} 30. Kf1 {[%emt 0:04:57]} Ke7 {[%emt 0:00:33]} 31. Ke2 {[%emt 0:30:11]} Rd5 {[%emt 0:35:15]} 32. Rc8 {[%emt 0:01:21]} Rd8 {[%emt 0:00:08]} 33. Rc5 {[%emt 0:00:22]} b6 {[%emt 0:01:22]} 34. Rc4 {[%emt 0:00:13]} Nxh5 {[%emt 0:00:03]} 35. Nc2 {[%emt 0:00:02]} Kd7 {[%emt 0:01:11]} 36. Nb4 {[%emt 0:00:19]} Bd6 {[%emt 0:00:32]} 37. Nc6 {[%emt 0:00:31]} Ra8 {[%emt 0:00:22]} 38. Kf3 {[%emt 0:02:33]} Bc7 {[%emt 0:01:01]} 39. Bd4 {[%emt 0:00:48]} f5 {[%emt 0:00:35]} 40. g4 {[%emt 0:00:00]} fxg4+ {[%emt 0:00:00]} 41. Kxg4 {[%emt 0:00:00]} Nf4 {[%emt 0:00:00]} 42. Be5 {[%emt 0:00:00]} Ne6 {[%emt 0:00:00]} 43. f4 {[%emt 0:00:00]} Bxe5 {[%emt 0:00:00]} 44. Nxe5+ {[%emt 0:00:00]} Kd6 {[%emt 0:00:00]} 45. Rc6+ {[%emt 0:00:00]} Kd5 {[%emt 0:00:00]} 46. Nc4 {[%emt 0:00:00]} Nf8 {[%emt 0:00:00]} 47. Rxb6 {[%emt 0:00:00]} axb6 {[%emt 0:00:00]} 48. Nxb6+ {[%emt 0:00:00]} Kc5 {[%emt 0:00:00]} 49. Nxa8 {[%emt 0:00:00]} Kb4 {[%emt 0:00:00]} 50. b6 {[%emt 0:00:00]} Ka5 {[%emt 0:00:00]} 51. b7 {[%emt 0:00:25]} Nd7 {[%emt 0:00:00]} 52. Nc7 {[%emt 0:01:13]} Kb6 {[%emt 0:00:00]} 53. Ne6 {[%emt 0:01:02]} Kxb7 {[%emt 0:00:00]} 54. Nxg7 {[%emt 0:00:10]} Nc5 {[%emt 0:00:00]} 55. d4 {[%emt 0:05:03]} Nxa4 {[%emt 0:00:00]} 56. f5 {[%emt 0:00:10]} Kc6 {[%emt 0:00:00]} 57. f6 {[%emt 0:00:19]} Kd6 {[%emt 0:00:00]} 58. Kh5 {[%emt 0:01:05]} Nb6 {[%emt 0:00:00]} 59. Kxh6 {[%emt 0:00:09]} Nd7 {[%emt 0:01:42]} 60. Kg6 {[%emt 0:00:42]} Kd5 {[%emt 0:01:09]} 61. Nf5 {[%emt 0:00:23]} Ke4 {[%emt 0:00:14]} 62. f7 {[%emt 0:01:32]} Nf8+ {[%emt 0:00:41]} 63. Kf6 {[%emt 0:00:30]} Nh7+ {[%emt 0:01:31]} 64. Ke7 {[%emt 0:00:19]} Kxf5 {[%emt 0:02:07]} 65. d5 {[%emt 0:00:03]} 1-0

[Event "DMP Ekstraliga 2020"]
[Site "Krakow"]
[Date "2020.08.29"]
[Round "4.22"]
[White "Bobras, Piotr"]
[Black "Tazbir, Marcin"]
[Result "1/2-1/2"]
[ECO "C10"]
[WhiteElo "2487"]
[BlackElo "2510"]
[Annotator "ChessBase"]
[PlyCount "24"]
[EventDate "2020.08.26"]
[EventType "team-tourn"]
[EventCountry "POL"]
[SourceTitle "playchess.com"]
[Source "ChessBase"]
[SourceQuality "1"]
[WhiteTeam "Miedz Legnica"]
[BlackTeam "Polonia Wroclaw"]
[TimeControl "30/5400+30:1800+30"]

1. e4 {[%emt 0:00:00]} e6 {[%emt 0:00:00]} 2. d4 {[%emt 0:00:00]} d5 {[%emt 0:00:00]} 3. Nc3 {[%emt 0:00:00]} dxe4 {[%emt 0:00:00]} 4. Nxe4 {[%emt 0:00:00]} Bd7 {[%emt 0:00:01]} 5. Nf3 {[%emt 0:07:02]} Bc6 {[%emt 0:00:04]} 6. Bd3 {[%emt 0:06:13]} Nd7 {[%emt 0:00:34]} 7. O-O {[%emt 0:00:36]} Ngf6 {[%emt 0:00:06]} 8. Ng3 {[%emt 0:00:37]} g6 {[%emt 0:00:10]} 9. b3 {[%emt 0:11:26]} Bg7 {[%emt 0:00:05]} 10. Ba3 {[%emt 0:03:19]} Bf8 {[%emt 0:00:03]} 11. Bb2 {[%emt 0:01:39]} Bg7 {[%emt 0:00:05]} 12. Ba3 {[%emt 0:08:01]} Bf8 {[%emt 0:00:22]} 1/2-1/2

[Event "DMP Ekstraliga 2020"]
[Site "Krakow"]
[Date "2020.08.29"]
[Round "4.23"]
[White "Wieczorek, Oskar"]
[Black "Murdzia, Piotr"]
[Result "1/2-1/2"]
[ECO "C96"]
[WhiteElo "2493"]
[BlackElo "2423"]
[Annotator "ChessBase"]
[PlyCount "142"]
[EventDate "2020.08.26"]
[EventType "team-tourn"]
[EventCountry "POL"]
[SourceTitle "playchess.com"]
[Source "ChessBase"]
[SourceQuality "1"]
[WhiteTeam "Polonia Wroclaw"]
[BlackTeam "Miedz Legnica"]
[TimeControl "30/5400+30:1800+30"]

1. e4 {[%emt 0:00:00]} e5 {[%emt 0:00:00]} 2. Nf3 {[%emt 0:00:00]} Nc6 {[%emt 0:00:00]} 3. Bb5 {[%emt 0:00:00]} a6 {[%emt 0:00:00]} 4. Ba4 {[%emt 0:00:00]} Nf6 {[%emt 0:00:00]} 5. O-O {[%emt 0:00:00]} Be7 {[%emt 0:00:13]} 6. Re1 {[%emt 0:00:27]} b5 {[%emt 0:00:14]} 7. Bb3 {[%emt 0:00:06]} d6 {[%emt 0:00:25]} 8. c3 {[%emt 0:00:07]} O-O {[%emt 0:00:23]} 9. h3 {[%emt 0:00:09]} Na5 {[%emt 0:00:47]} 10. Bc2 {[%emt 0:02:35]} c5 {[%emt 0:00:08]} 11. d4 {[%emt 0:00:05]} Nd7 {[%emt 0:00:38]} 12. Nbd2 {[%emt 0:01:50]} exd4 {[%emt 0:00:46]} 13. cxd4 {[%emt 0:00:18]} Nc6 {[%emt 0:00:45]} 14. d5 {[%emt 0:00:52]} Nce5 {[%emt 0:00:40]} 15. a4 {[%emt 0:01:37]} Rb8 {[%emt 0:02:20]} 16. Nxe5 {[%emt 0:06:51]} Nxe5 {[%emt 0:00:39]} 17. axb5 {[%emt 0:03:55]} axb5 {[%emt 0:00:14]} 18. f4 {[%emt 0:00:11]} Ng6 {[%emt 0:02:14]} 19. Nf3 {[%emt 0:00:15]} Bh4 {[%emt 0:01:45]} 20. Nxh4 {[%emt 0:00:38]} Qxh4 {[%emt 0:00:20]} 21. f5 {[%emt 0:00:58]} Ne5 {[%emt 0:01:09]} 22. Rf1 {[%emt 0:00:05]} b4 {[%emt 0:21:37]} 23. Bf4 {[%emt 0:15:16]} Qe7 {[%emt 0:07:53]} 24. Qe2 {[%emt 0:11:42]} f6 {[%emt 0:02:47]} 25. Ra5 {[%emt 0:22:46]} b3 {[%emt 0:07:16]} 26. Bb1 {[%emt 0:13:00]} Bd7 {[%emt 0:04:16]} 27. Bd2 {[%emt 0:06:36]} Ra8 {[%emt 0:00:44]} 28. Bd3 {[%emt 0:04:21]} Rxa5 {[%emt 0:19:32]} 29. Bxa5 {[%emt 0:00:08]} Bxf5 {[%emt 0:00:14]} 30. exf5 {[%emt 0:07:09]} Qa7 {[%emt 0:00:06]} 31. Bc3 {[%emt 0:32:04]} c4+ {[%emt 0:30:14]} 32. Kh1 {[%emt 0:00:46]} cxd3 {[%emt 0:00:20]} 33. Qe4 {[%emt 0:00:32]} Qa6 {[%emt 0:01:21]} 34. Rd1 {[%emt 0:01:01]} Re8 {[%emt 0:01:25]} 35. Bxe5 {[%emt 0:00:16]} Rxe5 {[%emt 0:12:41]} 36. Qxd3 {[%emt 0:00:05]} Qxd3 {[%emt 0:00:46]} 37. Rxd3 {[%emt 0:00:05]} Rxf5 {[%emt 0:00:23]} 38. Rxb3 {[%emt 0:00:03]} Rxd5 {[%emt 0:00:16]} 39. Rb7 {[%emt 0:00:32]} h5 {[%emt 0:00:33]} 40. b4 {[%emt 0:00:00]} Rd1+ {[%emt 0:00:00]} 41. Kh2 {[%emt 0:00:00]} h4 {[%emt 0:00:00]} 42. b5 {[%emt 0:00:00]} Kh7 {[%emt 0:00:00]} 43. Rd7 {[%emt 0:00:00]} Rb1 {[%emt 0:00:00]} 44. Rxd6 {[%emt 0:00:00]} Rxb5 {[%emt 0:00:00]} 45. Kg1 {[%emt 0:00:00]} Rb2 {[%emt 0:00:00]} 46. Rd7 {[%emt 0:00:00]} Kh6 {[%emt 0:00:00]} 47. Rd4 {[%emt 0:00:00]} g5 {[%emt 0:00:00]} 48. Rd5 {[%emt 0:00:00]} Re2 {[%emt 0:00:00]} 49. Kf1 {[%emt 0:00:00]} Re5 {[%emt 0:00:00]} 50. Rd4 {[%emt 0:00:00]} Kg6 {[%emt 0:00:00]} 51. Kf2 {[%emt 0:00:00]} Kf5 {[%emt 0:00:00]} 52. Kf3 {[%emt 0:00:00]} Ra5 {[%emt 0:00:00]} 53. Rd3 {[%emt 0:00:00]} Ra4 {[%emt 0:00:00]} 54. Rd5+ {[%emt 0:00:00]} Ke6 {[%emt 0:00:00]} 55. Rb5 {[%emt 0:00:00]} Rf4+ {[%emt 0:00:00]} 56. Ke3 {[%emt 0:00:00]} Rf5 {[%emt 0:00:00]} 57. Rb6+ {[%emt 0:00:00]} Kf7 {[%emt 0:00:00]} 58. Ra6 {[%emt 0:00:00]} Kg6 {[%emt 0:00:00]} 59. Ra3 {[%emt 0:00:00]} Rf1 {[%emt 0:00:00]} 60. Ke2 {[%emt 0:00:00]} Rf4 {[%emt 0:00:00]} 61. Ra5 {[%emt 0:00:00]} Rb4 {[%emt 0:00:00]} 62. Kf3 {[%emt 0:00:00]} Rb6 {[%emt 0:00:00]} 63. Rc5 {[%emt 0:00:00]} f5 {[%emt 0:00:00]} 64. Ra5 {[%emt 0:00:00]} Rb3+ {[%emt 0:00:00]} 65. Kf2 {[%emt 0:00:00]} Rc3 {[%emt 0:00:00]} 66. Rb5 {[%emt 0:00:00]} Kf6 {[%emt 0:00:00]} 67. Ra5 {[%emt 0:00:00]} Ke6 {[%emt 0:00:00]} 68. Rb5 {[%emt 0:00:00]} g4 {[%emt 0:00:00]} 69. hxg4 {[%emt 0:00:00]} fxg4 {[%emt 0:00:00]} 70. Rh5 {[%emt 0:00:00]} Rc2+ {[%emt 0:01:14]} 71. Ke3 {[%emt 0:00:00]} Rxg2 {[%emt 0:01:07]} 1/2-1/2